Cogmind - Beta 16.1 @@@ ROGUE MODE // 2026.02.12 @ 13:07:04 Player: Jimothy Jimone Result: Destroyed by LT-1D7(R) with Subdweller Beam Cannon Performance ------------- Evolutions (0) 0 Regions Visited (2) 400 Robots Destroyed (2) 10 Value Destroyed (47) 47 Prototype IDs (0) 0 Alien Tech Used (0) 0 Bonus (-10) -10 TOTAL SCORE: 447 Bonus ------- Friendly Fire -10 Cogmind --------- Core Integrity 0/250 Matter 245/300 Energy 100/100 System Corruption 0% Temperature Cool (15) Movement Rolling (80) Location -10/Subcaves Parts ------- > --- POWER (1) -------- (None) > --- PROPULSION (2) --- Wheel > --- UTILITY (2) ------ Small Storage Unit > --- WEAPON (2) ------- Light Cannon > --- INVENTORY (8) ---- Ion Engine Light Treads Improved Heat Sink Structural Scanner Visual Processing Unit Light Assault Rifle Makeshift Shrapnel Gun Peak State ------------ > --- POWER ------------ Light Ion Engine > --- PROPULSION ------- Wheel Wheel > --- UTILITY ---------- Small Storage Unit Improved Terrain Scanner > --- WEAPON ----------- Assault Rifle Mining Laser > --- INVENTORY -------- Ion Engine Light Treads Improved Heat Sink Structural Scanner Visual Processing Unit Light Assault Rifle Light Cannon [Rating: 10] Favorites ----------- Power Light Ion Engine Engine Light Ion Engine Propulsion Wheel Wheel Wheel Flight Unit Flight Unit Utility Small Storage Unit Device Improved Terrain Scanner Storage Small Storage Unit Weapon Assault Rifle Ballistic Gun Assault Rifle Ballistic Cannon Light Cannon Special Weapon Mining Laser Build | -11 -10 -10 ------- Run | Yrd Mat Sub Slots Evolved . | . . . Power . | . . . Propulsion . | . . . Utility . | . . . Weapon . | . . . Parts Attached 11 | 8 2 1 Power 1 | 1 . . Engine 1 | 1 . . Core . | . . . Reactor . | . . . Propulsion 4 | 2 2 . Treads . | . . . Leg . | . . . Wheel 2 | 2 . . Hover . | . . . Flight 2 | . 2 . Utility 2 | 2 . . Device 1 | 1 . . Storage 1 | 1 . . Processor . | . . . Hackware . | . . . Protection . | . . . Artifact . | . . . Weapon 4 | 3 . 1 Energy Gun . | . . . Energy Cannon . | . . . Ballistic Gun 2 | 2 . . Ballistic Cannon 1 | . . 1 Launcher . | . . . Special Weapon 1 | 1 . . Impact Weapon . | . . . Slashing Weapon . | . . . Piercing Weapon . | . . . Special Melee Weapon . | . . . Unidentified Prototypes . | . . . Parts Lost 5 | . . 5 Power 1 | . . 1 Propulsion 1 | . . 1 Utility 1 | . . 1 Weapon 2 | . . 2 Highest Loss Streak 5 | . . 5 To Critical Strikes . | . . . Average Backups 5 | 1 4 6 Power . | . 1 1 Propulsion 1 | 1 1 1 Utility 1 | . 1 2 Weapon 1 | . 1 2 Tool/Special . | . . . Unused Backups 7 | . 1 6 Power 1 | . . 1 Propulsion 2 | . 1 1 Utility 3 | . . 3 Weapon 1 | . . 1 Tool/Special . | . . . Average Slot Usage (%) 97 | . 98 96 Engine 13 | . 14 13 Wheel 25 | . 26 25 Device 13 | . 14 13 Storage 14 | . 14 14 Ballistic Gun 14 | . 14 14 Ballistic Cannon 1 | . . 2 Special Weapon 12 | . 14 11 Peak Build Rating 10 | 9 9 10 Average Rating 8 | 5 8 9 On Entrance 6 | . 9 9 Avg Prop Armor Cover (%) . | . . . Naked Turns . | . . . Heaviest Build 14 | 12 12 14 Greatest Support 20 | 20 20 20 Greatest Overweight (x) 2 | . 2 1 Average Overweight (x) . | . . . Largest Inventory Capacity 8 | 8 8 8 Average Capacity 7 | 7 8 8 Most Carried 8 | 5 7 8 Average Carried 5 | 2 4 6 Final Capacity 8 | 8 8 8 Final Carried 7 | 4 6 7 Class Distribution -------------------- 100% | Mutant Dominant Class ---------------- Mutant | -10/Materials Mutant | -10/Subcaves Resources | -11 -10 -10 ----------- Run | Yrd Mat Sub Matter Collected 324 | 270 54 . Remotely . | . . . Salvage Created 40 | 22 . 18 Parts 4 | 4 . . Haulers Intercepted . | . . . Recyclers Shooed . | . . . Parts Field Recycled . | . . . Retrieved Matter . | . . . Parts Self-Destructed . | . . . Prevented . | . . . Parts Restored . | . . . Kills | -11 -10 -10 ------- Run | Yrd Mat Sub Combat Hostiles Destroyed 1 | . . 1 Cannons 1 | . . 1 Classes Destroyed 2 | 1 . 1 Tunneler 1 | 1 . . Subdweller 1 | . . 1 Best Kill Streak 1 | 1 . 1 Combat Bots Only 1 | . . 1 Max Kills in Single Turn 1 | 1 . 1 Gunslinging . | . . . Exploded . | . . . Melee . | . . . Uniques/NPCs Destroyed . | . . . Combat | -11 -10 -10 -------- Run | Yrd Mat Sub Hostile Shots Fired 37 | . . 37 Missed 9 | . . 9 Hits 28 | . . 28 Projectile 28 | . . 28 Critical Strikes 1 | . . 1 Damage Taken 670 | . . 670 Core 273 | . . 273 Absorbed by Shields . | . . . Core Remaining (%) 100 | 100 . . Volleys Fired 14 | 1 . 13 Largest 2 | 2 . 2 Hottest 100 | 40 . 100 Shots Fired 23 | 2 . 21 Gun 12 | 2 . 10 Cannon 10 | . . 10 Launcher . | . . . Special 1 | . . 1 Kinetic 22 | 2 . 20 Thermal 1 | . . 1 Explosive . | . . . Electromagnetic . | . . . Robot Hit Streak 4 | 1 . 4 Robot Miss Streak 4 | . . 4 Penetration Max . | . . . Secondary Targets . | . . . Shots Hit Robots 12 | 1 . 11 Core Hits 3 | 1 . 2 Critical Kills . | . . . Critical Parts Destroyed . | . . . Critical Strikes . | . . . Melee Attacks . | . . . Impact . | . . . Slashing . | . . . Piercing . | . . . Sneak Attacks . | . . . Combat Hostiles . | . . . Follow-up Attacks . | . . . Damage Inflicted 143 | 10 . 133 Guns 57 | 10 . 47 Cannons 86 | . . 86 Explosions . | . . . Melee . | . . . Ramming . | . . . Kinetic 143 | 10 . 133 Thermal . | . . . Explosive . | . . . Electromagnetic . | . . . Impact . | . . . Slashing . | . . . Piercing . | . . . Highest Corruption . | . . . Average Corruption . | . . . Corruption Purged . | . . . Corruption Blocked . | . . . Overload Shots . | . . . Overflow Damage . | . . . Projectiles . | . . . Explosions . | . . . Melee . | . . . Knockbacks 2 | . . 2 Impact . | . . . Kinetic 2 | . . 2 Secondary . | . . . Self-Inflicted Damage . | . . . Shots . | . . . Rammed . | . . . Targets Rammed . | . . . Kicked . | . . . Crushed . | . . . Highest Temperature . | . . . Average Temperature . | . . . Received Heat Transfer 207 | . . 207 Siege Activations . | . . . Martial Activations . | . . . Shielding Activations . | . . . Robots Disrupted . | . . . Combat Hostiles . | . . . Robots Corrupted . | . . . Combat Hostiles . | . . . Parts Fried . | . . . Impact Corruptions . | . . . Robots Melted . | . . . Combat Hostiles . | . . . Parts Melted 1 | . . 1 Heat Transferred . | . . . Parts Sabotaged . | . . . Parts Stolen . | . . . Parts Stripped . | . . . Power Chain Reactions . | . . . Alert | -11 -10 -10 ------- Run | Yrd Mat Sub Maximum Alert Level . | . . . Low Security (%) 100 | 100 100 . Level 1 . | . . . Level 2 . | . . . Level 3 . | . . . Level 4 . | . . . Level 5 . | . . . High Security . | . . . Max Security . | . . . Peak Influence 5 | 5 . . Initial . | . . . Average . | . . . Influence Increases 5 | 5 . . Destroy 0b10 Robot/NC 5 | 5 . . Influence Decreases 5 | 5 . . Time Decay 5 | 5 . . Squads Dispatched 1 | . 1 . Investigation 1 | . 1 . Extermination . | . . . Reinforcement . | . . . Assault . | . . . Garrison . | . . . Intercept . | . . . Searches Triggered . | . . . Construction Impeded . | . . . Haulers Reinforced . | . . . Active Scanning Responses . | . . . Cargo Convoy Interrupts . | . . . Stealth | -11 -10 -10 --------- Run | Yrd Mat Sub Distress Signals . | . . . Communications Jammed . | . . . Distress Signals . | . . . Times Spotted 10 | . 5 5 Peak Tracking Total 3 | . 2 3 Tactical Retreats 1 | . . 1 Traps | -11 -10 -10 ------- Run | Yrd Mat Sub Traps Triggered . | . . . Indirectly . | . . . Trap Hack Attempts . | . . . Triggered . | . . . Disarmed . | . . . Reprogrammed . | . . . Reused . | . . . Traps Extracted . | . . . Installed . | . . . Triggered . | . . . Machines | -11 -10 -10 ---------- Run | Yrd Mat Sub Machines Disabled . | . . . Max in Single Turn . | . . . Machines Repaired . | . . . Machines Dismantled . | . . . Machines Sabotaged . | . . . Overloaded Fab Kills . | . . . Hacking | -11 -10 -10 --------- Run | Yrd Mat Sub Machines Accessed . | . . . Terminals . | . . . Fabricators . | . . . Repair Stations . | . . . Recycling Units . | . . . Scanalyzers . | . . . Garrison Access . | . . . Total Hacks . | . . . Successful . | . . . Failed . | . . . Catastrophic . | . . . Database Lockouts . | . . . Manual . | . . . Terminals . | . . . Fabricators . | . . . Repair Stations . | . . . Recycling Units . | . . . Scanalyzers . | . . . Garrison Access . | . . . Terminal Hacks . | . . . Fabricator Hacks . | . . . Repair Station Hacks . | . . . Recycling Unit Hacks . | . . . Scanalyzer . | . . . Garrison Access Hacks . | . . . Unauthorized Hacks . | . . . Terminals . | . . . Fabricators . | . . . Repair Stations . | . . . Recycling Units . | . . . Scanalyzers . | . . . Garrison Access . | . . . Data Cores Recovered . | . . . Used . | . . . Hacking Detections . | . . . Full Trace Events . | . . . Feedback Events . | . . . Feedback Blocked . | . . . Robot Schematics Acquired . | . . . Robots Built . | . . . Authchips . | . . . Time . | . . . Total Robot Build Rating . | . . . Part Schematics Acquired . | . . . Parts Built . | . . . Authchips . | . . . Time . | . . . Total Part Build Rating . | . . . Part Studies Acquired . | . . . Parts Repaired . | . . . Time . | . . . Parts Recycled . | . . . Recycled Matter . | . . . Retrieved Matter . | . . . Retrieved Components . | . . . Parts Scanalyzed . | . . . Part Schematics Acquired . | . . . Parts Damaged . | . . . Bothacking | -11 -10 -10 ------------ Run | Yrd Mat Sub Used RIF Installer . | . . . Robots Hacked . | . . . Non-combat . | . . . Combat . | . . . Robot Hacks Applied . | . . . Relay Couplers Released . | . . . Fabnet Peak Effective % . | . . . Robots Rewired . | . . . Allies Hacked . | . . . Hacks Repelled . | . . . Allies | -11 -10 -10 -------- Run | Yrd Mat Sub Total Allies . | . . . Largest Group . | . . . Highest-Rated Group . | . . . Highest-Rated Ally . | . . . Total Orders . | . . . Ally Attacks . | . . . Total Damage . | . . . Kills . | . . . Allies Corrupted . | . . . Allies Melted . | . . . Intel | -11 -10 -10 ------- Run | Yrd Mat Sub Active Infowar (turns) 312 | 6 124 182 Terrain 312 | 6 124 182 Robot Analysis Total . | . . . Derelict Logs Recovered 1 | . . 1 Drone Launches . | . . . Drone Recoveries . | . . . Exploration | -11 -10 -10 ------------- Run | Yrd Mat Sub Turns Passed 383 | 67 124 192 Spaces Moved 365 | 61 126 178 Core 1 | 1 . . Treads . | . . . Legs . | . . . Wheels 362 | 60 124 178 Hover . | . . . Flight 2 | . 2 . Fastest Speed 50 | 50 80 80 Average Speed 80 | 79 81 80 Slowest Speed 200 | 80 200 95 Overloaded Moves . | . . . Propulsion Burnouts . | . . . Robots Hopped . | . . . Potential Cave-ins . | . . . Cave-ins Triggered . | . . . Exploration Rate (%) 16 | 4 29 16 Regions Visited 2 Branch Regions 1 Pre-discovered Areas 1 | . . 1 Known Exits Taken . | . . . Unknown Exits Taken 2 | 1 1 . Scrap Searched . | . . . Spaces Dug . | . . . Terrain Destroyed . | . . . Melee . | . . . Projectile . | . . . AOE . | . . . Terrain Rammed . | . . . Walls Destroyed . | . . . Machines Disabled . | . . . Actions | -11 -10 -10 --------- Run | Yrd Mat Sub Total 428 | 74 150 204 Wait 18 | . 8 10 Move 363 | 60 125 178 Hop . | . . . Pick Up 11 | 4 5 2 Fast Attach 8 | 7 1 . Attach 5 | 1 3 1 Detach 5 | 1 4 . Swap . | . . . Drop 4 | . 4 . Fire 14 | 1 . 13 Melee . | . . . Ram . | . . . Kick . | . . . Crush . | . . . Escape Stasis . | . . . Rewire . | . . . Trap . | . . . Miscellaneous . | . . . Route ------- -11/Scrapyard -10/Materials (discovered 2 exits: [*Mat] / [*Sub]) -10/Subcaves History --------- Turn | Location | Event 22 | -11/Scrapyard | Discovered new exit (range 16) 68 | -11/Scrapyard | Entered Materials 69 | -10/Materials | Met a group of wandering Federalists 147 | -10/Materials | Discovered new exit (range 16) 185 | -10/Materials | Discovered new exit (range 9) 192 | -10/Materials | Entered Subcaves 192 | -10/Subcaves | Accompanied by 2 allies 193 | -10/Subcaves | Continued accompanying wandering Federalists (2) 193 | -10/Subcaves | Approached by a straggling Scientist 249 | -10/Subcaves | Learned location of Zion (-7) 308 | -10/Subcaves | Shifting Twisted Machinery released Mak. Shrapnel Gun 309 | -10/Subcaves | Build established: Mutant 317 | -10/Subcaves | Shifting Twisted Machinery released Shrapnel Trap 327 | -10/Subcaves | Lost 3 allies 375 | -10/Subcaves | Core integrity fell below 50% 383 | -10/Subcaves | Core integrity fell below 20% 384 | -10/Subcaves | Destroyed by LT-1D7(R) with Subdweller Beam Cannon Last Messages --------------- World map updated: -7/Zion. LX-DP5(g) destroyed. Acquired Imp. Heat Sink. X2-7ZE(c): "I think it's somewhere east of here" X2-7ZE(c) destroyed. 91-SP2(g) destroyed. Subatomizers dissect the Salvaging Laser. Mak. Shrapnel Gun falls loose from the Twisted Machinery. Acquired Mak. Shrapnel Gun. Shrapnel Trap falls loose from the Twisted Machinery. Mining Laser destroyed. Wheel destroyed. OZ-0HT(R) knocked back. Lgt. Ion Engine destroyed. Imp. Terrain Scanner destroyed. Disposable Heat Sink melted. OZ-0HT(R) destroyed. LT-1D7(R) knocked back. Assault Rifle destroyed. Map ----- +----------------------------------------------------+ | ?????????????????????????????????????????? | | ?????????????????????????????????????????? | | ?????????????????????????????????????????? | | ?????????????????????????????????????????? | | ?????????????????????????????????????????? | | ?????????????????????????????????????????? | | ?????????????????????????????????????????? | | ?????????????????????????????????????????? | | ?????????????????????????????????????????? | | ?????????????????????????????????????????? | | ?????????????????????????????????????????? | | ?????????????????????????????????????????? | | ???????????????????????????????#?????????? | | ???????????????#?????????????????????????? | | ????????????????#????????????????????????? | | ????????????#????????#????????#??????????? | | ??????????????????????????????? ?????????? | | ???????????????????## ??#???????????????? | | ???????????????????# ?#????????????????? | | ????????????????????# #????????????????? | | ??????????#?#???????## #????????????????? | | ????????????????????# "##???????????????? | | ????????????????????##&" ####????????????? | | ??????????#??????#### "" ##????#??????? | | ????????#???????##""" " ###?????????? | | ???????????????##@ "" ####???????? | | ???????#??????##"" R "" ###?????? | | ?????????#????#"""" R"%""" #?????? | | ??????????????#"""" %" " ##?????? | | ??????????#???##"" !" ###???#?#? | | ???????????????## " %" ## ###????????? | | ???????#??????#?###### ########?#?????? | | ?????????????????????##" #??## ##??????? | | ??????????#??????????##" #### #??????? | | ????????????#???????##"" ##?????? | | ????????????????#???# "" #??????? | | ???????????????????#""""""""" ##?????## | | ???????????????????#"""""""""## ######## | | ???????????????????? ## ## ## | | ??????????????????? ### ## | | ?????????????????? ??###### | | ?????????????#????? ##???## | | ?????????????#????? #### | | ??????????????????# | | ???????????????????? | | ??????????????#??????????### | | ???????????????????????????### ## ### | | ????????????????????#??????### ### #?## | | ???????????????????????##### # #?###??# | | ???????????????????????# ## #??????? | +----------------------------------------------------+ Best States ------------- Heat Dissipation 25 Energy Generation 10 Energy Capacity 125 Matter Stores 300 Matter Capacity 300 Sight Range 16 Terrain Scan Range 16 Terrain Scan Density 10 Evasion (%) 44 Item Schematics ----------------- None Robot Schematics ------------------ None Fabricated ------------ Nothing Repaired ---------- Nothing Studied --------- None Alien Tech Used ----------------- None Achievements -------------- None Challenges ------------ None Game ------ Seed SupersonicPointyPrototype Manual? 0 Play Time 00:10:49 Cumulative 15.8 hours Start 2026.02.12 @ 12:57:03 End 2026.02.12 @ 13:07:04 Sessions 1 Manual Loads 0 Difficulty Rogue Special Mode None Game No. 29 Rogue 29 Adventurer 0 Explorer 0 Win Type - Total 0 Types 0/0/0/0/0/0/0/0/0/0 Lore% 21 Gallery% 14 Achievement% 13 Wizard Run 0 Options --------- Layout 1 ASCII 0 Keyboard 1 Movement Arrows Keybinds 0 Fullscreen 0 Font 14/SmallcapsGlow Map View 55x38 Zoom Use 0% Tactical HUD 0 Map Filters NONE Filters NONE Steam 1 RUN: 71101647-c011-4cd0-b237-92dbfdd35360